[Event "32nd NATO Chess Championship"]
[Site "Tartu, Estonia"]
[Date "2022.06.30"]
[Round "5.31"]
[White "Papler, Peter"]
[Black "Heran-Boily, Samuel"]
[Result "0-1"]
[TimeControl "90 min + 30 sec increment from move one"]
[WhiteFideId "14609770"]
[BlackFideId "1554565"]
[WhiteElo "1714"]
[BlackElo "1871"]

1. d4 {[%clk 01:27:48]} {[%emt 00:03:12]} d5 {[%clk 01:30:56]} {[%emt
00:00:05]} 2. Bf4 {[%clk 01:28:12]} {[%emt 00:00:06]} Nf6 {[%clk 01:31:04]}
{[%emt 00:00:21]} 3. Nf3 {[%clk 01:28:30]} {[%emt 00:00:12]} e6 {[%clk
01:31:05]} {[%emt 00:00:29]} 4. e3 {[%clk 01:28:32]} {[%emt 00:00:28]} Be7
{[%clk 01:29:36]} {[%emt 00:01:59]} 5. h3 {[%clk 01:28:31]} {[%emt 00:00:31]}
b6 {[%clk 01:25:54]} {[%emt 00:04:12]} 6. Be2 {[%clk 01:26:54]} {[%emt
00:02:06]} Bb7 {[%clk 01:25:48]} {[%emt 00:00:36]} 7. O-O {[%clk 01:26:45]}
{[%emt 00:00:39]} O-O {[%clk 01:26:11]} {[%emt 00:00:08]} 8. Nbd2 {[%clk
01:26:21]} {[%emt 00:00:54]} Nbd7 {[%clk 01:26:09]} {[%emt 00:00:31]} 9. c3
{[%clk 01:25:25]} {[%emt 00:01:26]} c5 {[%clk 01:25:38]} {[%emt 00:01:01]} 10.
Re1 {[%clk 01:24:44]} {[%emt 00:01:10]} Ne4 {[%clk 01:22:56]} {[%emt 00:03:13]}
11. Qc2 {[%clk 01:22:06]} {[%emt 00:03:08]} Ndf6 {[%clk 01:13:07]} {[%emt
00:10:20]} 12. Rad1 {[%clk 01:19:17]} {[%emt 00:03:18]} c4 {[%clk 01:12:26]}
{[%emt 00:01:11]} 13. Nxe4 {[%clk 01:14:10]} {[%emt 00:05:37]} Nxe4 {[%clk
01:12:34]} {[%emt 00:00:22]} 14. Nd2 {[%clk 01:12:31]} {[%emt 00:02:09]} f5
{[%clk 01:12:00]} {[%emt 00:01:04]} 15. Nxe4 {[%clk 01:08:04]} {[%emt
00:04:57]} fxe4 {[%clk 01:12:12]} {[%emt 00:00:19]} 16. b3 {[%clk 01:07:36]}
{[%emt 00:00:58]} b5 {[%clk 01:10:53]} {[%emt 00:01:49]} 17. Rb1 {[%clk
01:06:37]} {[%emt 00:01:29]} Bc6 {[%clk 01:09:53]} {[%emt 00:01:31]} 18. bxc4
{[%clk 01:05:21]} {[%emt 00:01:46]} bxc4 {[%clk 01:10:07]} {[%emt 00:00:16]} 19.
Rf1 {[%clk 01:05:37]} {[%emt 00:00:14]} Bd6 {[%clk 01:08:06]} {[%emt 00:02:30]}
20. Bxd6 {[%clk 01:05:08]} {[%emt 00:00:59]} Qxd6 {[%clk 01:08:27]} {[%emt
00:00:10]} 21. Rb4 {[%clk 00:58:28]} {[%emt 00:07:09]} Rf6 {[%clk 01:07:08]}
{[%emt 00:01:48]} 22. Rfb1 {[%clk 00:58:14]} {[%emt 00:00:45]} Raf8 {[%clk
01:07:13]} {[%emt 00:00:25]} 23. Bg4 {[%clk 00:56:39]} {[%emt 00:02:05]} g6
{[%clk 01:04:47]} {[%emt 00:02:56]} 24. R1b2 {[%clk 00:56:28]} {[%emt
00:00:41]} Kg7 {[%clk 01:03:23]} {[%emt 00:01:53]} 25. Qb1 {[%clk 00:55:45]}
{[%emt 00:01:13]} h5 {[%clk 01:02:01]} {[%emt 00:01:52]} 26. Bd1 {[%clk
00:55:42]} {[%emt 00:00:33]} Kh6 {[%clk 01:01:48]} {[%emt 00:00:43]} 27. Qc1
{[%clk 00:52:44]} {[%emt 00:03:28]} Qc7 {[%clk 01:00:29]} {[%emt 00:01:49]} 28.
Qd2 {[%clk 00:47:31]} {[%emt 00:05:43]} Rf5 {[%clk 00:56:32]} {[%emt 00:04:26]}
29. Qe1 {[%clk 00:43:28]} {[%emt 00:04:33]} Rg5 {[%clk 00:52:01]} {[%emt
00:05:01]} 30. h4 {[%clk 00:32:59]} {[%emt 00:11:00]} Rgf5 {[%clk 00:51:18]}
{[%emt 00:01:13]} 31. g4 {[%clk 00:29:32]} {[%emt 00:03:56]} R5f7 {[%clk
00:46:41]} {[%emt 00:05:08]} 32. g5+ {[%clk 00:28:45]} {[%emt 00:01:16]} Kg7
{[%clk 00:47:00]} {[%emt 00:00:11]} 33. Kg2 {[%clk 00:28:47]} {[%emt 00:00:28]}
Rf5 {[%clk 00:43:16]} {[%emt 00:04:14]} 34. Qg1 {[%clk 00:27:20]} {[%emt
00:01:56]} R5f7 {[%clk 00:41:05]} {[%emt 00:02:42]} 35. Qh1 {[%clk 00:23:03]}
{[%emt 00:04:47]} a5 {[%clk 00:40:33]} {[%emt 00:01:01]} 36. Rb6 {[%clk
00:23:06]} {[%emt 00:00:27]} Rxf2+ {[%clk 00:40:30]} {[%emt 00:00:33]} 37. Rxf2
{[%clk 00:22:40]} {[%emt 00:00:55]} Rxf2+ {[%clk 00:40:44]} {[%emt 00:00:16]}
38. Kxf2 {[%clk 00:23:07]} {[%emt 00:00:04]} Qxb6 {[%clk 00:41:05]} {[%emt
00:00:09]} 39. Qh2 {[%clk 00:20:48]} {[%emt 00:02:49]} Be8 {[%clk 00:40:32]}
{[%emt 00:01:03]} 40. Qe5+ {[%clk 00:20:51]} {[%emt 00:00:28]} Kg8 {[%clk
00:40:40]} {[%emt 00:00:22]} 41. Qf6 {[%clk 00:17:26]} {[%emt 00:03:54]} Qd6
{[%clk 00:40:31]} {[%emt 00:00:39]} 42. Kg2 {[%clk 00:17:13]} {[%emt 00:00:44]}
Bf7 {[%clk 00:40:24]} {[%emt 00:00:37]} 43. Qe5 {[%clk 00:13:41]} {[%emt
00:04:02]} Qb6 {[%clk 00:37:57]} {[%emt 00:02:55]} 44. Kg3 {[%clk 00:13:09]}
{[%emt 00:01:03]} Qb1 {[%clk 00:37:20]} {[%emt 00:01:08]} 45. Qd6 {[%clk
00:09:21]} {[%emt 00:04:18]} Qxd1 {[%clk 00:37:04]} {[%emt 00:00:46]} 46. Qd8+
{[%clk 00:09:40]} {[%emt 00:00:11]} Kh7 {[%clk 00:37:18]} {[%emt 00:00:16]} 47.
Kf4 {[%clk 00:07:47]} {[%emt 00:02:23]} Qg4+ {[%clk 00:34:32]} {[%emt
00:03:15]} 48. Ke5 {[%clk 00:07:59]} {[%emt 00:00:18]} Qxh4 {[%clk 00:34:09]}
{[%emt 00:00:53]} 49. Kf6 {[%clk 00:06:43]} {[%emt 00:01:47]} Qf2+ {[%clk
00:34:20]} {[%emt 00:00:18]} 50. Ke7 {[%clk 00:06:54]} {[%emt 00:00:19]} Bg8
{[%clk 00:32:56]} {[%emt 00:01:53]} 51. Kd6 {[%clk 00:05:00]} {[%emt 00:02:25]}
Kg7 {[%clk 00:28:02]} {[%emt 00:05:24]} 52. Qxa5 {[%clk 00:04:53]} {[%emt
00:00:38]} Qg3+ {[%clk 00:27:31]} {[%emt 00:01:00]} 53. Kc5 {[%clk 00:04:32]}
{[%emt 00:00:50]} Qxg5 {[%clk 00:27:03]} {[%emt 00:00:58]} 54. Qc7+ {[%clk
00:04:41]} {[%emt 00:00:21]} Bf7 {[%clk 00:24:34]} {[%emt 00:02:59]} 55. a4
{[%clk 00:05:03]} {[%emt 00:00:08]} Qxe3 {[%clk 00:23:56]} {[%emt 00:01:08]} 56.
a5 {[%clk 00:05:19]} {[%emt 00:00:14]} Qxc3 {[%clk 00:24:02]} {[%emt 00:00:24]}
57. Qb6 {[%clk 00:03:44]} {[%emt 00:02:06]} e3 {[%clk 00:23:26]} {[%emt
00:01:05]} 58. a6 {[%clk 00:04:07]} {[%emt 00:00:07]} e2 {[%clk 00:22:45]}
{[%emt 00:01:11]} 59. a7 {[%clk 00:04:31]} {[%emt 00:00:06]} Qa3+ {[%clk
00:22:44]} {[%emt 00:00:31]} 60. Kc6 {[%clk 00:03:48]} {[%emt 00:01:13]} e1=Q
{[%clk 00:22:39]} {[%emt 00:00:35]} 61. Kb7 {[%clk 00:03:43]} {[%emt 00:00:35]}
Qeb4 {[%clk 00:22:13]} {[%emt 00:00:55]} 62. Qxb4 {[%clk 00:03:24]} {[%emt
00:00:49]} 0-1

[Event "32nd NATO Chess Championship"]
[Site "Tartu, Estonia"]
[Date "2022.06.30"]
[Round "5.32"]
[White "Graham, Frazer"]
[Black "Ivsek, Cveto"]
[Result "0-1"]
[TimeControl "90 min + 30 sec increment from move one"]
[WhiteFideId "479993"]
[BlackFideId "14608405"]
[WhiteElo "1864"]
[BlackElo "1766"]

1. e4 {[%clk 01:30:56]} c5 {[%clk 01:30:49]} 2. Nf3 {[%clk 01:30:56]} Nc6
{[%clk 01:30:49]} 3. g3 {[%clk 01:30:56]} e6 {[%clk 01:30:49]} 4. d3 {[%clk
01:30:56]} d5 {[%clk 01:30:49]} 5. Nbd2 {[%clk 01:30:56]} Nf6 {[%clk 01:30:49]}
6. Bg2 {[%clk 01:30:56]} Bd6 {[%clk 01:30:49]} 7. O-O {[%clk 01:30:56]} O-O
{[%clk 01:30:49]} 8. Re1 {[%clk 01:30:56]} Qc7 {[%clk 01:30:49]} 9. Qe2 {[%clk
01:30:56]} Nd7 {[%clk 01:30:49]} 10. c3 {[%clk 01:30:56]} a6 {[%clk 01:30:49]}
11. Nh4 {[%clk 01:30:56]} d4 {[%clk 01:30:49]} 12. f4 {[%clk 01:30:56]} Be7
{[%clk 01:30:49]} 13. Nhf3 {[%clk 01:30:56]} b5 {[%clk 01:30:49]} 14. e5 {[%clk
01:30:56]} Bb7 {[%clk 01:30:49]} 15. Ne4 {[%clk 01:30:56]} Rfd8 {[%clk
01:30:49]} 16. cxd4 {[%clk 01:30:56]} Nxd4 {[%clk 01:30:49]} 17. Nxd4 {[%clk
01:30:56]} cxd4 {[%clk 01:30:49]} 18. Bd2 {[%clk 01:30:56]} Rac8 {[%clk
01:30:49]} 19. Rec1 {[%clk 01:30:56]} Qb6 {[%clk 01:30:49]} 20. Qf3 {[%clk
01:30:56]} Bxe4 {[%clk 01:30:49]} 21. Qxe4 {[%clk 01:30:56]} Nc5 {[%clk
01:30:49]} 22. Qe2 {[%clk 01:30:56]} Na4 {[%clk 01:30:49]} 23. Qe1 {[%clk
01:30:56]} b4 {[%clk 01:30:49]} 24. Be4 {[%clk 01:30:56]} a5 {[%clk 01:30:49]}
25. a3 {[%clk 01:30:56]} Rxc1 {[%clk 01:30:49]} 26. Rxc1 {[%clk 01:30:56]} Nxb2
{[%clk 01:30:49]} 27. Rb1 {[%clk 01:30:56]} Na4 {[%clk 01:30:49]} 28. axb4
{[%clk 01:30:56]} axb4 {[%clk 01:30:49]} 29. Kh1 {[%clk 01:30:56]} Nc3 {[%clk
01:30:49]} 30. Rb3 {[%clk 01:30:56]} Qa6 {[%clk 01:30:49]} 31. Qc1 {[%clk
01:30:56]} Rc8 {[%clk 01:30:49]} 32. Bf3 {[%clk 01:30:56]} Qxd3 {[%clk
01:30:49]} 33. Bg2 {[%clk 01:30:56]} Qc4 {[%clk 01:30:49]} 34. Qb2 {[%clk
01:30:56]} h6 {[%clk 01:30:49]} 35. Bxc3 {[%clk 01:30:56]} bxc3 {[%clk
01:30:49]} 0-1

[Event "32nd NATO Chess Championship"]
[Site "Tartu, Estonia"]
[Date "2022.06.30"]
[Round "5.33"]
[White "Giedraitis, Mingaudas"]
[Black "Ross, David C"]
[Result "1-0"]
[TimeControl "90 min + 30 sec increment from move one"]
[WhiteFideId "12808806"]
[BlackFideId "417572"]
[WhiteElo "1846"]
[BlackElo "1677"]

1. d4 {[%clk 01:30:55]} {[%emt 00:00:03]} Nf6 {[%clk 01:30:35]} {[%emt
00:00:25]} 2. Bf4 {[%clk 01:31:19]} {[%emt 00:00:07]} c5 {[%clk 01:29:03]}
{[%emt 00:02:04]} 3. e3 {[%clk 01:31:16]} {[%emt 00:00:33]} Qb6 {[%clk
01:26:35]} {[%emt 00:02:59]} 4. Na3 {[%clk 01:31:01]} {[%emt 00:00:45]} cxd4
{[%clk 01:21:50]} {[%emt 00:05:15]} 5. Qxd4 {[%clk 01:26:24]} {[%emt 00:05:06]}
Qxd4 {[%clk 01:11:59]} {[%emt 00:10:20]} 6. exd4 {[%clk 01:26:43]} {[%emt
00:00:12]} d6 {[%clk 01:10:26]} {[%emt 00:02:03]} 7. Bd3 {[%clk 01:21:49]}
{[%emt 00:05:23]} g6 {[%clk 01:04:45]} {[%emt 00:06:10]} 8. Bd2 {[%clk
01:20:30]} {[%emt 00:01:50]} Bg7 {[%clk 01:03:53]} {[%emt 00:01:23]} 9. Nb5
{[%clk 01:20:21]} {[%emt 00:00:39]} Na6 {[%clk 01:02:36]} {[%emt 00:01:48]} 10.
Ne2 {[%clk 01:17:39]} {[%emt 00:03:12]} Bd7 {[%clk 00:57:53]} {[%emt 00:05:12]}
11. O-O {[%clk 01:15:27]} {[%emt 00:02:41]} O-O {[%clk 00:52:23]} {[%emt
00:06:01]} 12. Rfe1 {[%clk 01:07:45]} {[%emt 00:08:11]} Nd5 {[%clk 00:43:35]}
{[%emt 00:09:18]} 13. c3 {[%clk 01:06:55]} {[%emt 00:01:21]} Nac7 {[%clk
00:41:22]} {[%emt 00:02:43]} 14. Nxc7 {[%clk 01:05:28]} {[%emt 00:01:57]} Nxc7
{[%clk 00:40:31]} {[%emt 00:01:21]} 15. Rad1 {[%clk 01:04:57]} {[%emt
00:01:01]} Bc6 {[%clk 00:37:09]} {[%emt 00:03:53]} 16. Bg5 {[%clk 01:02:45]}
{[%emt 00:02:41]} Rfe8 {[%clk 00:31:05]} {[%emt 00:06:35]} 17. Ng3 {[%clk
00:59:12]} {[%emt 00:04:01]} e5 {[%clk 00:25:15]} {[%emt 00:06:22]} 18. dxe5
{[%clk 00:58:15]} {[%emt 00:01:27]} dxe5 {[%clk 00:24:35]} {[%emt 00:01:10]} 19.
Ne4 {[%clk 00:57:21]} {[%emt 00:01:24]} Bxe4 {[%clk 00:19:20]} {[%emt
00:05:45]} 20. Bxe4 {[%clk 00:57:11]} {[%emt 00:00:39]} Ne6 {[%clk 00:17:54]}
{[%emt 00:01:56]} 21. Be3 {[%clk 00:56:08]} {[%emt 00:01:33]} Re7 {[%clk
00:15:38]} {[%emt 00:02:47]} 22. Rd6 {[%clk 00:53:18]} {[%emt 00:03:19]} Rd8
{[%clk 00:09:44]} {[%emt 00:06:25]} 23. Rxd8+ {[%clk 00:51:27]} {[%emt
00:02:21]} Nxd8 {[%clk 00:10:02]} {[%emt 00:00:11]} 24. Bxa7 {[%clk 00:51:33]}
{[%emt 00:00:25]} Rd7 {[%clk 00:08:43]} {[%emt 00:01:49]} 25. Be3 {[%clk
00:51:25]} {[%emt 00:00:36]} f5 {[%clk 00:07:44]} {[%emt 00:01:31]} 26. Bc2
{[%clk 00:51:41]} {[%emt 00:00:14]} f4 {[%clk 00:05:29]} {[%emt 00:02:45]} 27.
Bc1 {[%clk 00:51:50]} {[%emt 00:00:19]} Nc6 {[%clk 00:05:02]} {[%emt 00:00:58]}
28. f3 {[%clk 00:51:42]} {[%emt 00:00:38]} Kf8 {[%clk 00:04:44]} {[%emt
00:00:49]} 29. Kf1 {[%clk 00:51:47]} {[%emt 00:00:25]} Ne7 {[%clk 00:03:26]}
{[%emt 00:01:48]} 30. Rd1 {[%clk 00:50:22]} {[%emt 00:01:54]} Rc7 {[%clk
00:03:15]} {[%emt 00:00:41]} 31. Rd8+ {[%clk 00:45:38]} {[%emt 00:05:14]} Kf7
{[%clk 00:03:37]} {[%emt 00:00:09]} 32. g4 {[%clk 00:44:34]} {[%emt 00:01:34]}
Nc6 {[%clk 00:02:31]} {[%emt 00:01:36]} 33. Rd1 {[%clk 00:42:49]} {[%emt
00:02:15]} Nd4 {[%clk 00:01:59]} {[%emt 00:01:02]} 34. Be4 {[%clk 00:41:04]}
{[%emt 00:02:14]} Ne6 {[%clk 00:01:10]} {[%emt 00:01:20]} 35. Bd5 {[%clk
00:40:02]} {[%emt 00:01:32]} Ke7 {[%clk 00:01:32]} {[%emt 00:00:08]} 36. Ke2
{[%clk 00:39:22]} {[%emt 00:01:09]} Ng5 {[%clk 00:01:04]} {[%emt 00:00:58]} 37.
c4 {[%clk 00:39:07]} {[%emt 00:00:46]} h5 {[%clk 00:00:36]} {[%emt 00:00:58]}
38. gxh5 {[%clk 00:38:50]} {[%emt 00:00:47]} gxh5 {[%clk 00:01:03]} {[%emt
00:00:03]} 39. b3 {[%clk 00:37:24]} {[%emt 00:01:55]} 1-0

[Event "32nd NATO Chess Championship"]
[Site "Tartu, Estonia"]
[Date "2022.06.30"]
[Round "5.35"]
[White "Boudry, Rik"]
[Black "Ntalampiras, Spyros"]
[Result "0-1"]
[TimeControl "90 min + 30 sec increment from move one"]
[WhiteFideId "237540"]
[BlackFideId "4227778"]
[WhiteElo "1468"]
[BlackElo "1815"]

1. e4 {[%clk 01:30:46]} {[%emt 00:00:05]} c5 {[%clk 01:30:57]} {[%emt
00:00:12]} 2. Be2 {[%clk 01:31:05]} {[%emt 00:00:11]} Nc6 {[%clk 01:31:21]}
{[%emt 00:00:05]} 3. f4 {[%clk 01:31:19]} {[%emt 00:00:17]} g6 {[%clk
01:31:18]} {[%emt 00:00:33]} 4. Nf3 {[%clk 01:31:28]} {[%emt 00:00:20]} Bg7
{[%clk 01:31:36]} {[%emt 00:00:15]} 5. O-O {[%clk 01:30:52]} {[%emt 00:00:36]}
d5 {[%clk 01:31:43]} {[%emt 00:00:53]} 6. d3 {[%clk 01:30:32]} {[%emt
00:00:49]} Nh6 {[%clk 01:31:07]} {[%emt 00:01:07]} 7. c3 {[%clk 01:28:12]}
{[%emt 00:02:50]} O-O {[%clk 01:30:59]} {[%emt 00:00:38]} 8. Nbd2 {[%clk
01:26:32]} {[%emt 00:02:09]} Ng4 {[%clk 01:23:04]} {[%emt 00:08:25]} 9. Nb3
{[%clk 01:21:29]} {[%emt 00:05:34]} dxe4 {[%clk 01:22:55]} {[%emt 00:00:39]} 10.
dxe4 {[%clk 01:20:02]} {[%emt 00:01:56]} Qb6 {[%clk 01:23:05]} {[%emt
00:00:20]} 11. c4 {[%clk 01:14:29]} {[%emt 00:06:05]} Rd8 {[%clk 01:17:31]}
{[%emt 00:06:03]} 12. Qc2 {[%clk 01:14:03]} {[%emt 00:00:56]} a5 {[%clk
01:10:51]} {[%emt 00:07:09]} 13. h3 {[%clk 01:07:40]} {[%emt 00:06:53]} a4
{[%clk 01:08:56]} {[%emt 00:02:26]} 14. hxg4 {[%clk 01:07:23]} {[%emt
00:00:47]} axb3 {[%clk 01:09:18]} {[%emt 00:00:08]} 15. Qb1 {[%clk 01:07:48]}
{[%emt 00:00:04]} Bxg4 {[%clk 01:03:04]} {[%emt 00:06:45]} 16. Rd1 {[%clk
01:05:14]} {[%emt 00:03:04]} Rxd1+ {[%clk 00:58:07]} {[%emt 00:05:26]} 17. Bxd1
{[%clk 01:05:35]} {[%emt 00:00:09]} bxa2 {[%clk 00:55:17]} {[%emt 00:03:22]} 18.
Rxa2 {[%clk 01:04:50]} {[%emt 00:01:15]} Rd8 {[%clk 00:55:32]} {[%emt
00:00:14]} 19. Be3 {[%clk 01:03:58]} {[%emt 00:01:21]} Bxf3 {[%clk 00:50:34]}
{[%emt 00:05:28]} 20. Bxf3 {[%clk 01:03:24]} {[%emt 00:01:05]} Bd4 {[%clk
00:50:11]} {[%emt 00:00:52]} 21. Bxd4 {[%clk 01:03:08]} {[%emt 00:00:46]} Nxd4
{[%clk 00:50:32]} {[%emt 00:00:10]} 22. Bd1 {[%clk 00:58:41]} {[%emt 00:04:57]}
Qb4 {[%clk 00:48:52]} {[%emt 00:02:08]} 23. Kf2 {[%clk 00:54:25]} {[%emt
00:04:47]} Qd2+ {[%clk 00:47:43]} {[%emt 00:01:39]} 0-1

[Event "32nd NATO Chess Championship"]
[Site "Tartu, Estonia"]
[Date "2022.06.30"]
[Round "5.38"]
[White "Smit, Jan"]
[Black "Adolfssen, Rico"]
[Result "1/2-1/2"]
[TimeControl "90 min + 30 sec increment from move one"]
[WhiteFideId "1052047"]
[BlackFideId "1400371"]
[WhiteElo "1741"]
[BlackElo "1837"]

1. Nf3 {[%clk 01:30:48]} {[%emt 00:00:10]} d5 {[%clk 01:30:29]} {[%emt
00:00:32]} 2. d4 {[%clk 01:31:14]} {[%emt 00:00:04]} Bf5 {[%clk 01:30:01]}
{[%emt 00:00:59]} 3. Bg5 {[%clk 01:31:18]} {[%emt 00:00:26]} h6 {[%clk
01:27:04]} {[%emt 00:03:28]} 4. Bh4 {[%clk 01:31:31]} {[%emt 00:00:17]} Nd7
{[%clk 01:23:08]} {[%emt 00:04:26]} 5. e3 {[%clk 01:30:16]} {[%emt 00:01:45]}
Ngf6 {[%clk 01:21:26]} {[%emt 00:02:12]} 6. Nbd2 {[%clk 01:29:58]} {[%emt
00:00:47]} a6 {[%clk 01:16:53]} {[%emt 00:05:04]} 7. a4 {[%clk 01:30:20]}
{[%emt 00:00:09]} g5 {[%clk 01:14:58]} {[%emt 00:02:24]} 8. Bg3 {[%clk
01:30:39]} {[%emt 00:00:12]} c5 {[%clk 01:10:54]} {[%emt 00:04:33]} 9. Ne5
{[%clk 01:13:07]} {[%emt 00:18:02]} Bg7 {[%clk 01:05:13]} {[%emt 00:06:10]} 10.
Be2 {[%clk 01:03:38]} {[%emt 00:09:59]} O-O {[%clk 01:01:38]} {[%emt 00:04:06]}
11. h4 {[%clk 00:49:10]} {[%emt 00:20:19]} cxd4 {[%clk 00:53:10]} {[%emt
00:04:36]} 12. exd4 {[%clk 00:43:49]} {[%emt 00:05:52]} Rc8 {[%clk 00:50:27]}
{[%emt 00:03:12]} 13. c3 {[%clk 00:43:11]} {[%emt 00:01:08]} Qb6 {[%clk
00:48:37]} {[%emt 00:02:20]} 14. Qb3 {[%clk 00:32:46]} {[%emt 00:10:56]} Qd8
{[%clk 00:47:20]} {[%emt 00:00:35]} 1/2-1/2

[Event "32nd NATO Chess Championship"]
[Site "Tartu, Estonia"]
[Date "2022.06.30"]
[Round "5.39"]
[White "Lambruschini, Alex"]
[Black "Steen, Kris"]
[Result "0-1"]
[TimeControl "90 min + 30 sec increment from move one"]
[WhiteFideId "2604868"]
[BlackFideId "264571"]
[WhiteElo "1807"]
[BlackElo "1735"]

1. e4 {[%clk 01:30:44]} {[%emt 00:00:15]} c5 {[%clk 01:30:42]} {[%emt
00:00:19]} 2. Nf3 {[%clk 01:30:47]} {[%emt 00:00:26]} d6 {[%clk 01:31:04]}
{[%emt 00:00:08]} 3. d4 {[%clk 01:30:50]} {[%emt 00:00:29]} cxd4 {[%clk
01:31:23]} {[%emt 00:00:12]} 4. Nxd4 {[%clk 01:31:06]} {[%emt 00:00:13]} Nc6
{[%clk 01:31:46]} {[%emt 00:00:07]} 5. Nc3 {[%clk 01:30:09]} {[%emt 00:01:28]}
Nf6 {[%clk 01:31:56]} {[%emt 00:00:19]} 6. Be2 {[%clk 01:29:17]} {[%emt
00:01:22]} g6 {[%clk 01:30:45]} {[%emt 00:01:42]} 7. O-O {[%clk 01:29:28]}
{[%emt 00:00:19]} Bg7 {[%clk 01:31:11]} {[%emt 00:00:04]} 8. Kh1 {[%clk
01:28:50]} {[%emt 00:01:08]} O-O {[%clk 01:31:26]} {[%emt 00:00:14]} 9. g4
{[%clk 01:26:15]} {[%emt 00:03:05]} Nxd4 {[%clk 01:26:17]} {[%emt 00:05:40]} 10.
Qxd4 {[%clk 01:26:34]} {[%emt 00:00:10]} Bxg4 {[%clk 01:26:23]} {[%emt
00:00:25]} 11. f3 {[%clk 01:24:54]} {[%emt 00:02:08]} Bd7 {[%clk 01:24:54]}
{[%emt 00:02:01]} 12. Qg1 {[%clk 01:24:12]} {[%emt 00:01:10]} Bc6 {[%clk
01:24:44]} {[%emt 00:00:42]} 13. Be3 {[%clk 01:21:21]} {[%emt 00:03:19]} a6
{[%clk 01:22:03]} {[%emt 00:03:13]} 14. Bb6 {[%clk 01:13:39]} {[%emt 00:08:11]}
Qd7 {[%clk 01:16:42]} {[%emt 00:05:52]} 15. a4 {[%clk 01:10:34]} {[%emt
00:03:35]} Qe6 {[%clk 01:00:19]} {[%emt 00:16:54]} 16. Ra3 {[%clk 01:09:06]}
{[%emt 00:01:57]} d5 {[%clk 00:54:35]} {[%emt 00:06:16]} 17. e5 {[%clk
01:00:46]} {[%emt 00:08:48]} Nd7 {[%clk 00:51:17]} {[%emt 00:03:48]} 18. Bd4
{[%clk 00:57:38]} {[%emt 00:03:39]} Bxe5 {[%clk 00:45:03]} {[%emt 00:06:44]} 19.
f4 {[%clk 00:56:58]} {[%emt 00:01:08]} Bxd4 {[%clk 00:44:43]} {[%emt 00:00:51]}
20. Qxd4 {[%clk 00:56:27]} {[%emt 00:01:02]} Qf6 {[%clk 00:44:02]} {[%emt
00:01:11]} 21. Qd3 {[%clk 00:52:56]} {[%emt 00:04:01]} Nc5 {[%clk 00:43:14]}
{[%emt 00:01:17]} 22. Qh3 {[%clk 00:44:28]} {[%emt 00:08:58]} d4+ {[%clk
00:41:57]} {[%emt 00:01:48]} 23. Bf3 {[%clk 00:42:28]} {[%emt 00:02:29]} Bxf3+
{[%clk 00:41:24]} {[%emt 00:01:04]} 24. Rxf3 {[%clk 00:41:22]} {[%emt
00:01:36]} dxc3 {[%clk 00:41:47]} {[%emt 00:00:07]} 25. Raxc3 {[%clk 00:39:22]}
{[%emt 00:02:30]} Ne6 {[%clk 00:33:01]} {[%emt 00:09:16]} 26. f5 {[%clk
00:37:24]} {[%emt 00:02:28]} Ng5 {[%clk 00:31:25]} {[%emt 00:02:06]} 27. fxg6
{[%clk 00:36:17]} {[%emt 00:01:37]} Nxh3 {[%clk 00:31:10]} {[%emt 00:00:46]} 28.
gxh7+ {[%clk 00:35:50]} {[%emt 00:00:56]} Kh8 {[%clk 00:31:33]} {[%emt
00:00:07]} 0-1